bitfinex/quotes_SOLUSD_20250918
["timestamp","ask_amount","ask_price","bid_price","bid_amount"]
[1758215279900,1e-08,251.65,251.55,48.7]
[1758215280100,1e-08,251.65,251.54,13.91428798]
[1758215280628,1e-08,251.65,251.58,39.59559401]
[1758215280798,1e-08,251.65,251.64,13.59559401]
[1758215280996,1e-08,251.65,251.64,62.27559401]
[1758215281405,1e-08,251.65,251.64,66.24952502]
[1758215281608,1e-08,251.65,251.64,17.96691812]
[1758215281807,1e-08,251.65,251.64,29.97393101]
[1758215282009,1e-08,251.65,251.64,78.51393101]
[1758215282319,1e-08,251.65,251.64,92.50691812]
[1758215282502,1e-08,251.65,251.64,92.10952502]
[1758215282707,1e-08,251.65,251.64,43.56952502]
[1758215283004,1e-08,251.65,251.64,92.48691812]
[1758215283205,1e-08,251.65,251.64,92.08952502]
[1758215283532,1e-08,251.65,251.64,92.04952502]
[1758215283704,1e-08,251.65,251.64,91.94952502]
[1758215284025,1e-08,251.65,251.64,43.56952502]
[1758215284431,1e-08,251.65,251.64,91.86952502]
[1758215286725,1e-08,251.65,251.64,91.56952502]
[1758215286930,20.14549528,251.8,251.73,13.59559401]
[1758215287224,0.2,251.82,251.75,13.59559401]
[1758215287401,0.2,251.82,251.76,0.39720368]
[1758215287716,0.2,251.82,251.77,13.90157683]
[1758215288621,0.2,251.82,251.78,0.39717213]
[1758215289303,0.2,251.82,251.79,47.78]
[1758215289503,0.2,251.82,251.8,47.7]
[1758215289703,0.2,251.82,251.81,3.97124816]
[1758215290005,0.86,251.82,251.81,47.64]
[1758215290425,0.86,251.82,251.75,0.39721946]
[1758215290719,0.86,251.82,251.76,47.56]
[1758215290929,0.86,251.82,251.73,13.90378579]
[1758215291223,0.86,251.82,251.77,47.54]
[1758215291420,0.66,251.81,251.78,47.5]
[1758215291925,0.66,251.81,251.79,3.9715636]
[1758215292100,0.2,251.82,251.73,10.32852659]
[1758215292303,0.66,251.8,251.74,47.36]
[1758215292503,0.2,251.82,251.75,0.39721946]
[1758215293003,0.2,251.82,251.76,47.28]
[1758215293607,0.2,251.82,251.75,0.39721946]
[1758215293809,0.2,251.82,251.76,47.28]
[1758215294011,0.2,251.82,251.77,3.97187909]
[1758215294324,0.66,251.81,251.78,47.2]
[1758215294504,0.66,251.8,251.77,47.1]
[1758215294821,0.66,251.79,251.72,3.97266804]
[1758215295020,0.66,251.78,251.63,19.87030508]
[1758215295218,0.66,251.78,251.64,60.63559401]
[1758215295604,0.66,251.78,251.64,74.54410498]
[1758215295923,0.2,251.82,251.66,13.59559401]
[1758215296230,0.2,251.82,251.7,27.50103699]
[1758215296428,0.2,251.82,251.72,13.59559401]
[1758215297107,0.2,251.82,251.73,47.31725102]
[1758215297308,0.2,251.82,251.74,46.9]
[1758215298229,0.2,251.82,251.75,3.97219463]
[1758215298431,0.2,251.82,251.73,3.97240403]
[1758215298736,1.05751947,251.81,251.73,46.74]
[1758215298926,0.66,251.8,251.73,46.74]
[1758215299524,0.66,251.8,251.73,50.71237073]
[1758215299730,4.63143214,251.8,251.73,50.71237073]
[1758215300024,0.66,251.8,251.73,50.71237073]
[1758215301327,0.66,251.79,251.73,46.74]
[1758215301524,0.66,251.79,251.73,50.7124721]
[1758215301719,0.66,251.78,251.71,3.9726931]
[1758215302230,0.66,251.78,251.71,50.3326931]
[1758215302417,0.59751947,251.82,251.71,60.26475777]
[1758215302614,0.2,251.82,251.71,60.26475777]
[1758215302815,0.59751947,251.82,251.71,60.26475777]
[1758215303030,0.2,251.82,251.71,60.26475777]
[1758215303628,1.05751947,251.81,251.72,46.3]
[1758215303932,0.2,251.82,251.72,46.3]
[1758215304133,0.2,251.82,251.72,126.3972668]
[1758215304433,0.2,251.82,251.75,26.0]
[1758215304623,0.2,251.82,251.75,26.39721946]
[1758215305014,0.2,251.82,251.76,13.59559401]
[1758215305216,0.2,251.82,251.75,26.39721946]
[1758215305217,0.2,251.82,251.78,13.59559401]
[1758215305428,0.2,251.82,251.8,3.97140587]
[1758215305633,0.2,251.82,251.8,4.36854645]
[1758215305939,0.2,251.82,251.81,26.0]
[1758215306512,0.2,251.82,251.8,4.36854645]
[1758215306724,0.2,251.82,251.8,3.97140587]
[1758215307024,0.2,251.82,251.8,45.88]
[1758215307534,0.2,251.82,251.77,9.92941689]
[1758215307743,0.2,251.82,251.8,45.84]
[1758215308527,0.86,251.82,251.8,45.84]
[1758215308842,0.2,251.82,251.76,3.97203686]
[1758215309038,0.2,251.82,251.77,45.82]
[1758215310425,0.2,251.82,251.79,3.9715636]
[1758215310927,0.2,251.82,251.79,49.4915636]
[1758215311328,0.66,251.81,251.73,9.93120476]
[1758215311637,0.66,251.81,251.74,49.4322305]
[1758215312145,1.05751947,251.8,251.66,3.97361519]
[1758215312336,0.66,251.79,251.67,45.34]
[1758215312516,0.66,251.79,251.67,59.24705817]
[1758215313135,0.66,251.79,251.7,26.0]
[1758215313317,0.2,251.82,251.71,0.39728258]
[1758215313519,0.2,251.82,251.72,45.26]
[1758215314019,0.2,251.82,251.79,26.0]
[1758215314218,0.2,251.82,251.8,45.59714058]
[1758215314823,0.2,251.82,251.81,3.97124816]
[1758215316325,0.2,251.82,251.81,49.17124816]
[1758215316740,0.2,251.82,251.81,3.97124816]
[1758215317043,0.2,251.82,251.81,49.01124816]
[1758215317237,0.2,251.82,251.81,3.97124816]
[1758215317626,0.06,251.85,251.84,26.0]
[1758215317834,1e-08,251.91,251.89,13.59559401]
[1758215318032,1e-08,251.91,251.9,58.89257693]
[1758215318437,1e-08,251.91,251.9,62.03984701]
[1758215318779,1e-08,251.91,251.9,17.13984701]
[1758215319252,1e-08,251.91,251.9,58.77257693]
[1758215319444,0.2,252.01,251.99,13.59559401]
[1758215319745,0.2,252.01,251.95,13.59559401]
[1758215319746,0.2,252.01,252.0,13.9924194]
[1758215319930,0.2,252.01,252.0,44.76]
[1758215320156,0.92,252.01,251.92,13.59559401]
[1758215320348,0.92,252.01,251.94,13.59559401]
[1758215320550,0.92,252.01,251.95,44.76]
[1758215320762,0.92,252.01,251.96,44.7]
[1758215320946,0.92,252.01,251.93,26.0]
[1758215321269,0.92,252.01,251.94,44.66]
[1758215321447,0.92,252.01,251.95,3.96904147]
[1758215321764,0.92,252.01,251.96,44.62]
[1758215321970,1.11751947,252.0,251.85,3.97061743]
[1758215322145,0.72,251.99,251.86,44.6]
[1758215322346,0.72,251.98,251.86,44.6]
[1758215322547,0.72,251.98,251.88,13.59559401]
[1758215322874,1.11751947,251.97,251.89,44.56]
[1758215323073,0.72,251.96,251.89,44.56]
[1758215323252,0.72,251.96,251.85,13.897161]
[1758215323449,0.72,251.95,251.86,44.5]
[1758215323646,10.12024126,252.01,251.87,0.39703021]
[1758215323647,0.72,251.99,251.87,0.39703021]
[1758215323847,0.2,252.01,251.92,13.59559401]
[1758215324156,0.2,252.01,251.94,13.59559401]
[1758215324367,0.2,252.01,251.95,0.39690414]
[1758215324856,0.2,252.01,251.96,44.38]
[1758215325247,0.2,252.01,251.97,0.39687264]
[1758215325471,0.2,252.01,251.98,3.96856893]
[1758215325855,0.92,252.01,251.98,3.96856893]
[1758215326059,0.2,252.01,251.98,3.96856893]
[1758215327076,0.2,252.01,251.98,13.88999126]
[1758215327570,0.06,252.04,252.0,13.59559401]
[1758215327768,0.06,252.04,252.02,13.59559401]
[1758215327948,0.06,252.04,252.01,44.2]
[1758215328146,0.78,252.04,251.98,3.96856893]
[1758215328357,0.06,252.04,252.02,44.1]
[1758215328870,0.06,252.04,251.98,13.88999126]
[1758215328871,0.78,252.04,251.98,13.88999126]
[1758215329068,0.78,252.04,251.99,44.04]
[1758215329657,0.78,252.04,252.0,3.96825396]
[1758215329858,0.06,252.04,252.01,43.96]
[1758215330051,0.06,252.04,252.02,43.96]
[1758215330760,0.06,252.04,252.0,3.96825396]
[1758215330761,0.78,252.04,252.0,3.96825396]
[1758215330959,0.78,252.04,252.03,43.96]
[1758215331952,0.78,252.04,252.02,3.96787554]
[1758215331953,0.78,252.04,251.78,31.77783124]
[1758215332155,0.72,252.03,251.83,13.8982647]
[1758215332366,5.27955456,252.02,251.85,13.59559401]
[1758215332580,0.72,252.01,251.85,13.59559401]
[1758215332778,0.72,252.0,251.84,13.59559401]
[1758215333079,0.72,252.0,251.87,13.59559401]
[1758215333265,0.72,252.0,251.89,13.59559401]
[1758215333870,0.06,252.04,251.93,39.59559401]
[1758215334054,0.06,252.04,251.98,13.59559401]
[1758215334256,0.06,252.04,251.99,43.74]
[1758215335553,0.06,252.04,252.0,13.88888888]
[1758215335974,0.06,252.04,252.01,43.58]
[1758215337673,0.06,252.04,252.02,3.96793905]
[1758215337878,0.06,252.04,252.03,43.38]
[1758215338979,0.78,252.04,252.03,43.38]
[1758215339281,0.78,252.04,251.92,13.89329945]
[1758215339578,0.72,252.03,251.94,3.96919901]
[1758215339756,0.72,252.02,251.94,13.89219654]
[1758215340558,0.06,252.04,251.95,13.59559401]
[1758215340759,0.78,252.04,251.94,13.89219654]
[1758215341378,0.78,252.04,251.95,43.22]
[1758215341379,1.11751947,252.03,251.95,43.22]
[1758215341581,1.11751947,252.03,251.77,26.87359084]
[1758215341582,4.68793905,252.02,251.77,3.25869534]
[1758215341884,1.11751947,252.01,252.0,0.03]
[1758215342065,5.5638777,252.01,251.78,13.9010247]
[1758215342269,0.72,252.0,251.94,0.03]
[1758215342586,0.28432314,251.94,251.78,3.97172134]
[1758215342781,4.16203509,251.9,251.77,43.22]
[1758215342967,1.08751947,251.89,251.77,43.22]
[1758215343374,0.69,251.88,251.77,43.22]
[1758215343578,0.39751947,251.87,251.78,13.9010247]
[1758215344779,0.69,251.86,251.78,3.97172134]
[1758215345081,0.39751947,251.85,251.78,3.97172134]
[1758215345384,0.39751947,251.85,251.79,43.02]
[1758215345586,0.39751947,251.85,251.8,3.97140587]
[1758215345888,0.69,252.01,251.88,26.0]
[1758215346069,0.69,252.01,251.92,26.0]
[1758215346289,0.69,252.01,251.93,43.12]
[1758215346990,0.69,252.01,251.94,43.08]
[1758215347668,0.69,252.05,251.95,13.89164516]
[1758215347872,0.2,252.06,251.96,0.39688839]
[1758215348268,0.2,252.06,251.95,13.89164516]
[1758215348689,0.2,252.06,251.95,33.73685254]
[1758215349388,0.75,252.04,251.96,42.84]
[1758215349885,0.75,252.04,251.97,3.96872643]
[1758215350584,0.75,252.04,251.98,42.84]
[1758215351079,0.75,252.04,251.97,3.96872643]
[1758215351284,0.69,252.03,251.93,3.96935656]
[1758215351498,0.69,252.03,251.94,42.7]
[1758215351987,4.65787889,252.03,251.95,42.64]
[1758215352194,0.69,252.03,251.95,42.64]
[1758215352585,0.69,252.03,251.93,13.89274797]
[1758215352895,0.69,252.03,251.94,42.56]
[1758215353595,0.69,252.03,251.95,3.96904147]
[1758215354090,4.65780611,252.03,251.96,42.56]
[1758215354303,0.06,252.04,251.96,42.56]
[1758215354669,0.69,252.03,251.93,3.96931596]
[1758215354871,0.69,252.02,251.93,46.38931596]
[1758215355067,0.69,252.02,251.86,26.09]
[1758215355068,0.69,252.01,251.94,42.42]
[1758215355770,4.65821185,252.01,251.94,46.38917102]
[1758215355971,0.69,252.01,251.94,46.38917102]
[1758215356492,0.06,252.04,251.94,56.31216855]
[1758215357170,0.2,252.06,251.97,26.0]
[1758215357171,0.11,252.06,251.97,26.0]
[1758215357407,0.06,252.1,251.99,39.87991715]
[1758215357408,1e-08,252.1,251.99,39.87991715]
[1758215357695,1e-08,252.1,252.08,26.0]
[1758215357870,1e-08,252.1,252.09,42.4]
[1758215358074,1e-08,252.1,252.01,27.48393177]
[1758215358276,1e-08,252.1,252.06,13.59559401]
[1758215358469,1e-08,252.1,252.07,42.4]
[1758215358815,1e-08,252.1,252.08,42.4]
[1758215359110,1e-08,252.1,252.05,26.0]
[1758215359270,1e-08,252.1,252.06,42.4]
[1758215359585,1e-08,252.1,252.05,26.0]
[1758215359899,1e-08,252.1,252.06,42.4]
[1758215360083,1e-08,252.1,252.03,39.88723564]
[1758215360084,1e-08,252.1,252.07,42.4]
[1758215360392,1e-08,252.1,252.03,39.88723564]
[1758215360692,1e-08,252.1,252.03,3.96778161]
[1758215361369,1e-08,252.1,252.04,42.38]
[1758215361778,1e-08,252.1,252.05,3.96746677]
[1758215362271,1e-08,252.1,252.06,42.38]
[1758215362585,1e-08,252.1,252.07,24.1]
[1758215363000,1e-08,252.1,252.08,42.38]
[1758215363295,1e-08,252.1,252.07,66.48]
[1758215363802,1e-08,252.1,252.07,70.44710243]
[1758215365196,1e-08,252.1,252.07,28.06710243]
[1758215365400,1e-08,252.1,252.08,42.38]
[1758215365782,1e-08,252.1,252.07,28.06710243]
[1758215368288,1e-08,252.1,252.07,24.1]
[1758215368480,1e-08,252.1,252.07,28.06711349]
[1758215370414,1e-08,252.1,252.07,37.98499344]
[1758215371609,1e-08,252.1,252.08,42.75669946]
[1758215371824,1e-08,252.1,252.08,42.36]
[1758215372114,1e-08,252.1,252.09,3.96683724]
[1758215372709,1e-08,252.1,252.09,17.56243125]
[1758215373694,1e-08,252.1,252.09,3.96683724]
[1758215378103,1e-08,252.1,252.09,83.66683724]
[1758215379098,1e-08,252.1,252.09,3.96683724]
[1758215381616,1e-08,252.1,252.09,83.66683724]
[1758215385406,1e-08,252.13,252.12,26.0]
[1758215385611,1e-08,252.13,252.12,82.27223053]
[1758215385810,1e-08,252.13,252.12,81.87559401]
[1758215387213,1e-08,252.13,252.12,85.84195923]
[1758215387821,1e-08,252.13,252.12,43.56195923]
[1758215388018,1e-08,252.13,252.12,3.96636522]
[1758215388215,1e-08,252.13,252.12,46.20636522]
[1758215392234,1e-08,252.13,252.12,59.80195923]
[1758215393345,1e-08,252.13,252.12,85.80195923]
[1758215395216,0.1,252.27,252.15,26.0]
[1758215395413,0.1,252.27,252.16,55.79559401]
[1758215395609,0.67,252.26,252.17,0.39655787]
[1758215395809,0.67,252.26,252.18,42.18]
[1758215396528,0.67,252.25,252.18,42.18]
[1758215396725,0.67,252.25,252.2,13.87787469]
[1758215396912,0.67,252.25,252.21,42.18]
[1758215397112,0.67,252.24,252.21,42.18]
[1758215397315,0.67,252.23,252.2,3.96510705]
[1758215397640,0.67,252.22,252.21,42.16]
[1758215398744,0.67,252.22,252.21,46.12494984]
[1758215399647,0.67,252.22,252.21,42.16]
[1758215399820,0.67,252.22,252.2,42.14]
[1758215400140,0.67,252.21,252.18,42.14]
[1758215400356,0.67,252.2,252.18,42.14]
[1758215400553,0.67,252.19,252.18,42.14]
[1758215400847,0.67,252.19,252.18,46.10542152]
[1758215401415,0.67,252.19,252.18,42.14]
[1758215401610,3.96464508,252.23,252.18,42.14]
[1758215401835,0.67,252.22,252.1,9.91659908]
[1758215402033,0.67,252.22,252.13,42.12]
[1758215402243,0.67,252.21,252.1,3.96656055]
[1758215402544,0.67,252.21,252.11,42.12]
[1758215402845,0.67,252.21,251.97,1e-08]
[1758215402846,31.66711986,252.13,251.97,1e-08]
[1758215403029,26.0,252.05,251.97,1e-08]
[1758215403242,18.36539219,252.12,251.98,13.3]
[1758215403447,0.58,252.11,251.98,13.3]
[1758215403650,20.0,252.22,251.97,1e-08]
[1758215403651,5.86539219,252.12,251.99,33.04]
[1758215403821,0.58,252.14,252.0,42.78]
[1758215404150,0.58,252.14,251.97,3.96862261]
[1758215404151,0.72216157,252.13,251.97,3.96862261]
[1758215404453,0.58,252.12,251.97,1e-08]
[1758215404751,0.14216157,252.1,251.97,1e-08]
[1758215404924,3.96683724,252.09,251.98,42.1]
[1758215405121,0.58,252.08,251.98,42.1]
[1758215406149,0.58,252.12,251.99,0.68]
[1758215406336,0.58,252.17,252.05,26.0]
[1758215406543,0.58,252.21,252.06,42.78]
[1758215406843,0.58,252.25,252.1,13.8833796]
[1758215407144,0.1,252.27,252.14,26.0]
[1758215407526,0.1,252.27,252.15,0.68]
[1758215408040,0.1,252.27,252.16,42.08]
[1758215409151,0.1,252.27,252.17,42.08]
[1758215409344,0.1,252.27,252.16,13.88007614]
[1758215409644,0.1,252.27,252.18,42.08]
[1758215409846,0.58,252.26,252.16,3.96573604]
[1758215410051,0.58,252.26,252.17,42.08]
[1758215410352,0.1,252.27,252.18,42.76]
[1758215410530,0.1,252.27,252.19,0.68]
[1758215411226,0.1,252.27,252.2,3.96510705]
[1758215411428,4.06406699,252.27,252.16,3.96562973]
[1758215411750,0.58,252.26,252.17,42.06]
[1758215411952,0.58,252.26,252.18,42.06]
[1758215411953,0.86432314,252.26,252.18,42.06]
[1758215412131,0.86432314,252.26,252.11,0.68]
[1758215412528,0.86432314,252.26,252.07,0.68]
[1758215412747,0.28432314,252.23,252.08,42.06]
[1758215412942,0.58,252.22,252.08,42.06]
[1758215413147,0.86432314,252.21,252.09,42.04]
[1758215413455,0.58,252.2,252.09,42.04]
[1758215413642,0.58,252.19,252.04,0.68]
[1758215413954,0.58,252.19,252.04,3.96755678]
[1758215414150,13.59559401,252.25,251.86,12.10594305]
[1758215414151,0.68,252.27,252.05,0.68]
[1758215414340,4.6440245,252.27,252.06,42.04]
[1758215414541,14.55404154,252.27,252.09,26.0]
[1758215414855,14.55404154,252.27,252.1,0.68]
[1758215415066,14.55404154,252.27,252.1,42.72]
[1758215415255,14.55404154,252.27,252.11,13.88282891]
[1758215415454,14.55404154,252.27,252.12,0.68]
[1758215415659,0.28432314,252.24,252.12,0.68]
[1758215415862,0.28432314,252.21,252.13,42.04]
[1758215416049,0.86432314,252.21,252.13,42.04]
[1758215416250,0.1,252.27,252.14,0.68]
[1758215416933,0.06,252.21,252.14,0.68]
[1758215417339,0.06,252.21,252.15,13.8806266]
[1758215417540,0.06,252.21,252.16,0.68]
[1758215417836,0.06,252.21,252.17,42.02]
[1758215418044,0.1,252.27,252.17,42.02]
[1758215418258,0.1,252.27,252.18,0.68]
[1758215418563,0.1,252.27,252.2,26.0]
[1758215418734,0.1,252.27,252.24,26.0]
[1758215418934,0.1,252.27,252.25,0.68]
[1758215419237,0.1,252.27,252.26,45.96416395]
[1758215419434,0.1,252.27,252.26,46.64416395]
[1758215420050,0.1,252.27,252.26,4.64416395]
[1758215420252,0.1,252.27,252.24,3.96439063]
[1758215420436,0.1,252.3,252.25,42.0]
[1758215420639,0.1,252.3,252.25,42.68]
[1758215420836,0.1,252.3,252.26,0.68]
[1758215421231,0.1,252.3,252.27,42.0]
[1758215421440,0.1,252.3,252.28,4.64384969]
[1758215421643,0.1,252.3,252.29,42.66]
[1758215422038,0.1,252.3,252.29,41.98]
[1758215422456,0.1,252.36,252.29,42.66]
[1758215422661,0.1,252.36,252.3,0.68]
[1758215422952,0.1,252.36,252.31,41.98]
[1758215423161,0.1,252.36,252.32,0.68]
[1758215423345,0.1,252.36,252.33,3.96306424]
[1758215423541,0.1,252.36,252.34,0.68]
[1758215423743,1e-08,252.36,252.35,26.0]
[1758215423947,1e-08,252.36,252.35,68.64]
[1758215424140,1e-08,252.36,252.35,41.96]
[1758215424458,1e-08,252.36,252.35,42.64]
[1758215424659,0.58,252.55,252.38,26.0]
[1758215424860,0.58,252.55,252.39,0.68]
[1758215425439,4.53914165,252.58,252.4,13.86687796]
[1758215425775,4.53914165,252.58,252.41,42.64]
[1758215425940,4.53914165,252.58,252.42,0.68]
[1758215426440,0.58,252.62,252.44,26.0]
[1758215426642,4.5385909,252.62,252.45,42.62]
[1758215426958,4.5385909,252.62,252.46,0.68]
[1758215427467,4.14703516,252.58,252.46,0.68]
[1758215427637,0.58,252.57,252.45,41.92]
[1758215427954,0.58,252.57,252.43,3.96139068]
[1758215428158,0.58,252.56,252.43,0.68]
[1758215428458,0.58,252.6,252.44,19.82]
[1758215428659,0.58,252.6,252.45,0.68]
[1758215428968,4.72703516,252.6,252.45,0.68]
[1758215429164,0.58,252.6,252.45,0.68]
[1758215429480,31.9551365,252.72,252.45,0.68]
[1758215429481,3.95481721,252.86,252.56,26.0]
[1758215429644,9.89503589,252.96,252.64,39.59559401]
[1758215429969,4.14703516,252.93,252.7,13.59559401]
[1758215430154,4.84703516,252.92,252.71,1.07571049]
[1758215430353,4.84703516,252.92,252.72,0.68]
[1758215430666,4.84703516,252.92,252.73,67.9]
[1758215430980,0.7,252.92,252.74,0.68]
[1758215431266,3.9530379,252.97,252.74,0.68]
[1758215431267,0.7,252.97,252.76,13.59559401]
[1758215431448,3.95366306,252.93,252.77,0.68]
[1758215431637,8.80069822,252.93,252.77,0.68]
[1758215431961,14.53782073,252.93,252.77,42.56]
[1758215432161,0.7,252.93,252.78,0.68]
[1758215432743,0.7,252.93,252.79,41.88]
[1758215432953,3.95356478,252.94,252.8,0.66]
[1758215433263,4.14703516,252.91,252.8,0.66]
[1758215433557,4.62413206,252.9,252.77,41.86]
[1758215434461,4.14703516,252.87,252.76,0.66]
[1758215434643,4.14703516,252.83,252.67,45.79767016]
[1758215434961,4.14703516,252.83,252.71,0.66]
[1758215435258,0.67,252.84,252.71,0.66]
[1758215435560,3.95522683,252.83,252.71,0.66]
[1758215435861,45.77066034,252.9,252.71,0.66]
[1758215435862,4.14703516,252.85,252.71,14.50979849]
[1758215436037,4.14703516,252.85,252.72,0.66]
[1758215436235,4.81703516,252.88,252.72,0.66]
[1758215436437,4.62449777,252.88,252.72,0.66]
[1758215436660,0.67,252.88,252.74,26.0]
[1758215436868,0.67,252.88,252.75,0.66]
[1758215437157,4.14703516,252.87,252.76,41.82]
[1758215437556,3.95491398,252.85,252.76,41.82]
[1758215437755,0.06,252.93,252.76,41.85]
[1758215437954,0.06,252.93,252.79,26.0]
[1758215437955,0.73,252.93,252.79,26.0]
[1758215438139,4.01372548,252.93,252.8,0.66]
[1758215438340,4.87703516,252.93,252.8,0.66]
[1758215438558,8.83078409,252.93,252.8,0.66]
[1758215439573,8.83078409,252.93,252.81,3.95553973]
[1758215439875,0.06,252.93,252.82,0.66]
[1758215440044,4.0137175,252.93,252.82,0.66]
[1758215440456,0.06,252.93,252.82,0.66]
[1758215440682,4.01373131,252.93,252.82,0.66]
[1758215441052,4.14703516,252.91,252.78,0.66]
[1758215441278,0.06,252.93,252.8,13.59559401]
[1758215441585,0.06,252.93,252.82,3.95538327]
[1758215441782,0.06,252.93,252.83,0.39552268]
[1758215441953,0.06,252.93,252.84,0.66]
[1758215442149,0.06,252.93,252.85,41.76]
[1758215442371,0.06,252.93,252.86,42.81547575]
[1758215442569,0.06,252.93,252.89,26.0]
[1758215442754,0.06,252.93,252.9,26.0]
[1758215442950,0.06,252.96,252.91,41.76]
[1758215443173,21.32555472,253.25,252.91,41.76]
[1758215443174,0.67,253.21,253.03,13.59559401]
[1758215443378,0.67,253.21,253.04,42.4]
[1758215443675,3.94944707,253.2,253.05,4.61178818]
[1758215443908,0.67,253.19,253.02,41.74]
[1758215444090,0.67,253.19,253.03,41.74]
[1758215444253,0.67,253.19,253.02,0.66]
[1758215444254,0.67,253.18,252.98,41.74]
[1758215444455,0.28432314,253.16,252.95,41.74]
[1758215444671,14.26559401,253.17,252.9,0.66]
[1758215444672,0.28432314,253.08,252.9,0.66]
[1758215444869,0.28432314,253.08,252.76,19.81117415]
[1758215444870,0.28432314,253.03,252.86,0.66]
[1758215445054,0.28432314,253.03,252.81,0.66]
[1758215445055,26.0,252.99,252.81,0.66]
[1758215445257,0.28432314,252.97,252.81,0.66]
[1758215445460,3.95335046,252.95,252.81,0.66]
[1758215445675,0.67,252.94,252.81,0.66]
[1758215446083,0.67,252.94,252.81,4.61545762]
[1758215446579,0.67,252.94,252.78,42.38]
[1758215446787,0.67,252.93,252.79,13.59559401]
[1758215446960,0.67,252.97,252.8,0.66]
[1758215447157,0.67,252.97,252.81,0.39555397]
[1758215447466,3.95319418,252.96,252.83,3.95522683]
[1758215447650,3.95319418,252.96,252.82,0.66]
[1758215447856,0.67,252.95,252.82,0.66]
[1758215448079,0.67,252.95,252.82,3.95533729]
[1758215448266,0.67,252.95,252.79,4.61574799]
[1758215448463,0.67,252.95,252.8,41.7]
[1758215448779,0.67,252.94,252.8,41.7]
[1758215448959,0.67,252.93,252.8,41.7]
[1758215449160,26.67,252.92,252.76,0.03]
[1758215449461,13.8416515,252.86,252.76,0.03]
[1758215449960,0.67,252.85,252.76,0.03]
[1758215450179,4.14703516,252.81,252.76,0.03]
[1758215450367,0.67,252.8,252.76,0.03]
[1758215450780,0.67,252.79,252.76,0.03]
[1758215451406,0.67,252.78,252.76,0.03]
[1758215451556,3.95616568,252.77,252.76,0.03]
[1758215451762,30.62616568,252.77,252.76,0.03]
[1758215453587,0.67,252.77,252.76,0.03]
[1758215453761,3.95592573,252.79,252.76,0.03]
[1758215454274,4.65592573,252.79,252.76,0.03]
[1758215454579,0.7,252.78,252.76,0.03]
[1758215455075,14.54384146,252.82,252.76,0.03]
[1758215457578,13.59559401,252.92,252.76,0.03]
[1758215457579,0.7,252.88,252.76,0.03]
[1758215458795,0.28432314,252.86,252.76,0.03]
[1758215459089,4.14703516,252.84,252.76,0.03]
[1758215459396,14.54329391,252.83,252.76,0.03]
[1758215460871,4.14703516,252.78,252.76,0.03]
[1758215461088,0.28432314,252.82,252.76,0.03]
[1758215461089,4.14703516,252.79,252.76,0.03]
[1758215461267,4.65600917,252.78,252.76,0.03]
[1758215462066,3.95600917,252.78,252.76,0.03]
[1758215462303,4.65549734,252.82,252.76,0.03]
[1758215462789,14.54395553,252.82,252.76,0.03]
[1758215463492,4.65549734,252.82,252.76,0.03]